fUSD/lending_fUSD_20250119
["ID","MTS","AMOUNT","RATE_DAILY","PERIOD"]
[349572586,1737303042095,-689.86,0.00019725,2]
[349572587,1737303042105,-500.0,0.00019725,2]
[349572588,1737303042114,-500.0,0.00019725,2]
[349572589,1737303042124,-500.0,0.00019725,2]
[349572590,1737303042133,-500.0,0.00019725,2]
[349572591,1737303042142,-500.0,0.00019725,2]
[349572592,1737303042153,-500.0,0.00019725,2]
[349572593,1737303042164,-500.0,0.00019725,2]
[349572594,1737303042174,-500.0,0.00019725,2]
[349572595,1737303042183,-500.0,0.00019725,2]
[349572596,1737303042192,-246.09083673,0.00019725,2]
[349572597,1737303042201,-657.32,0.00019725,2]
[349572598,1737303042211,-500.0,0.00019725,2]
[349572599,1737303042220,-505.47479646,0.00019725,2]
[349572600,1737303042229,-500.0,0.00019725,2]
[349572601,1737303042239,-500.0,0.00019725,2]
[349572602,1737303042248,-500.0,0.00019725,2]
[349572603,1737303042257,-500.0,0.00019725,2]
[349572604,1737303042266,-500.0,0.00019725,2]
[349572605,1737303042275,-500.0,0.00019725,2]
[349572606,1737303042285,-1231.04,0.00019725,2]
[349572607,1737303042294,-500.0,0.00019725,2]
[349572608,1737303042303,-500.0,0.00019725,2]
[349572609,1737303042313,-500.0,0.00019725,2]
[349572610,1737303042322,-500.0,0.00019725,2]
[349572611,1737303042332,-500.0,0.00019725,2]
[349572612,1737303042341,-500.0,0.00019725,2]
[349572613,1737303042351,-425.71514893,0.00019725,2]
[349572614,1737303042361,-500.0,0.00019725,2]
[349572615,1737303042370,-500.0,0.00019725,2]
[349572616,1737303042380,-500.0,0.00019725,2]
[349572617,1737303042389,-500.0,0.00019725,2]
[349572618,1737303042399,-500.0,0.00019725,2]
[349572619,1737303042412,-612.39,0.00019725,2]
[349572620,1737303042421,-1701.8,0.00019725,2]
[349572621,1737303042431,-500.0,0.00019725,2]
[349572623,1737303042440,-500.0,0.00019725,2]
[349572625,1737303042450,-1027.57,0.00019725,2]
[349572626,1737303042459,-500.0,0.00019725,2]
[349572627,1737303042469,-500.0,0.00019725,2]
[349572628,1737303042478,-500.0,0.00019725,2]
[349572629,1737303042488,-552.64,0.00019725,2]
[349572630,1737303042497,-500.0,0.00019725,2]
[349572631,1737303042506,-500.0,0.00019725,2]
[349572632,1737303042516,-1595.23,0.00019725,2]
[349572634,1737303042525,-500.0,0.00019725,2]
[349572635,1737303042534,-500.0,0.00019725,2]
[349572636,1737303042544,-500.0,0.00019725,2]
[349572637,1737303042553,-500.0,0.00019725,2]
[349572638,1737303042562,-500.0,0.00019725,2]
[349572639,1737303042572,-500.0,0.00019725,2]
[349572640,1737303042582,-500.0,0.00019725,2]
[349572641,1737303042593,-500.0,0.00019725,2]
[349572642,1737303042603,-500.0,0.00019725,2]
[349572643,1737303042613,-500.0,0.00019725,2]
[349572644,1737303042622,-500.0,0.00019725,2]
[349572646,1737303042632,-500.0,0.00019725,2]
[349572647,1737303042642,-500.0,0.00019725,2]
[349572648,1737303042653,-500.0,0.00019725,2]
[349572650,1737303042663,-500.0,0.00019725,2]
[349572651,1737303042672,-500.0,0.00019725,2]
[349572653,1737303042682,-500.0,0.00019725,2]
[349572655,1737303042691,-500.0,0.00019725,2]
[349572657,1737303042700,-500.0,0.00019726,2]
[349572659,1737303042710,-500.0,0.00019726,2]
[349572661,1737303042719,-500.0,0.00019726,2]
[349572663,1737303042728,-154.99006706,0.00019726,2]
[349572665,1737303042737,-500.0,0.00019726,2]
[349572667,1737303042748,-500.0,0.00019726,2]
[349572669,1737303042758,-500.0,0.00019726,2]
[349572671,1737303042767,-500.0,0.00019726,2]
[349572673,1737303042777,-500.0,0.00019726,2]
[349572675,1737303042786,-542.05,0.00019726,2]
[349572677,1737303042796,-1000.0,0.00019726,14]
[349572678,1737303042806,-208.18,0.00019726,2]
[349572679,1737303042815,-500.0,0.00019726,2]
[349572680,1737303042825,-173.68,0.00019726,2]
[349572681,1737303042835,-500.0,0.00019773,2]
[349572682,1737303042844,-796.04904258,0.00019868,2]
[349572683,1737303042854,-154.05500912,0.00019898,2]
[349572684,1737303042863,-300.0,0.000199,2]
[349572685,1737303042873,-208.52001571,0.000199,2]
[349572686,1737303042882,-500.0,0.00019973,2]
[349572687,1737303042891,-151.96562252,0.00019973,2]
[349572688,1737303042901,-215.977581,0.00019998,2]
[349572689,1737303042912,-500.0,0.00019998,2]
[349572690,1737303042921,-605.44,0.00019998,2]
[349572691,1737303042930,-402.077451,0.00019998,2]
[349572692,1737303042940,-974.87,0.00019998,2]
[349572693,1737303042949,-899.01,0.00019998,2]
[349572694,1737303042959,-500.0,0.00019998,2]
[349572695,1737303042970,-944.29,0.00019998,2]
[349572696,1737303042981,-1199.1,0.00019998,2]
[349572697,1737303042992,-500.0,0.00019998,2]
[349572698,1737303043002,-500.0,0.00019998,2]
[349572699,1737303043011,-500.0,0.00019998,2]
[349572700,1737303043022,-500.0,0.00019998,2]
[349572701,1737303043031,-1057.86,0.00019998,2]
[349572702,1737303043041,-519.09,0.00019998,2]
[349572703,1737303043051,-1110.23,0.00019998,2]
[349572704,1737303043061,-500.0,0.00019998,2]
[349572705,1737303043071,-500.0,0.00019998,2]
[349572706,1737303043080,-1005.93,0.00019998,2]
[349572707,1737303043089,-1602.28,0.00019998,2]
[349572708,1737303043099,-500.0,0.00019998,2]
[349572709,1737303043109,-500.0,0.00019998,2]
[349572710,1737303043118,-621.67,0.00019998,2]
[349572711,1737303043128,-2018.43,0.00019998,2]
[349572712,1737303043137,-500.0,0.00019998,2]
[349572713,1737303043148,-500.0,0.00019998,2]
[349572714,1737303043161,-500.0,0.00019998,2]
[349572715,1737303043170,-500.0,0.00019998,2]
[349572716,1737303043181,-529.36,0.00019998,2]
[349572717,1737303043191,-500.0,0.00019998,2]
[349572718,1737303043201,-510.1,0.00019998,2]
[349572719,1737303043210,-500.0,0.00019998,2]
[349572720,1737303043219,-500.0,0.00019998,2]
[349572721,1737303043230,-1035.37,0.00019998,2]
[349572722,1737303043239,-500.0,0.00019998,2]
[349572723,1737303043249,-500.0,0.00019998,2]
[349572725,1737303043260,-2123.56,0.00019998,2]
[349572727,1737303043269,-500.0,0.00019998,2]
[349572729,1737303043281,-987.56,0.00019998,2]
[349572731,1737303043290,-725.37,0.00019998,2]
[349572733,1737303043300,-500.0,0.00019998,2]
[349572735,1737303043310,-500.0,0.00019998,2]
[349572737,1737303043319,-500.0,0.00019998,2]
[349572739,1737303043329,-500.0,0.00019998,2]
[349572741,1737303043338,-500.0,0.00019998,2]
[349572743,1737303043348,-986.3,0.00019998,2]
[349572745,1737303043358,-944.52,0.00019998,2]
[349572747,1737303043368,-500.0,0.00019998,2]
[349572749,1737303043377,-567.83,0.00019998,2]
[349572751,1737303043387,-500.0,0.00019998,2]
[349572753,1737303043396,-500.0,0.00019998,2]
[349572754,1737303043407,-500.0,0.00019998,2]
[349572755,1737303043417,-500.0,0.00019998,2]
[349572756,1737303043427,-500.0,0.00019998,2]
[349572757,1737303043436,-500.0,0.00019998,2]
[349572758,1737303043446,-500.0,0.00019999,2]
[349572759,1737303043456,-500.0,0.00019999,2]
[349572760,1737303043465,-500.0,0.00019999,2]
[349572761,1737303043474,-935.14,0.00019999,2]
[349572762,1737303043487,-500.0,0.00019999,2]
[349572763,1737303043496,-520.42,0.00019999,2]
[349572764,1737303043506,-333.32,0.00019999,2]
[349572765,1737303043515,-500.0,0.00019999,2]
[349572766,1737303043525,-500.0,0.00019999,2]
[349572767,1737303043535,-500.0,0.00019999,2]
[349572769,1737303043545,-500.0,0.00019999,2]
[349572771,1737303043555,-500.0,0.00019999,2]
[349572773,1737303043565,-500.0,0.00019999,2]
[349572774,1737303043574,-1200.21,0.00019999,2]
[349572775,1737303043584,-500.0,0.00019999,2]
[349572776,1737303043594,-500.0,0.00019999,2]
[349572777,1737303043604,-500.0,0.00019999,2]
[349572778,1737303043614,-500.0,0.00019999,2]
[349572779,1737303043624,-500.0,0.00019999,2]
[349572780,1737303043633,-277.71961347,0.00019999,2]
[349572781,1737303043643,-500.0,0.00019999,2]
[349572782,1737303043653,-500.0,0.00019999,2]
[349572783,1737303043665,-500.0,0.00019999,2]
[349572784,1737303043674,-500.0,0.00019999,2]
[349572785,1737303043684,-555.69844188,0.00019999,2]
[349572786,1737303043693,-500.0,0.00019999,2]
[349572787,1737303043703,-500.0,0.00019999,2]
[349572788,1737303043712,-381.10321485,0.00019999,2]
[349572789,1737303043721,-500.0,0.00019999,2]
[349572790,1737303043731,-500.0,0.00019999,2]
[349572791,1737303043741,-500.0,0.00019999,2]
[349572792,1737303043751,-500.0,0.00019999,2]
[349572793,1737303043760,-500.0,0.00019999,2]
[349572794,1737303043769,-500.0,0.00019999,2]
[349572795,1737303043779,-500.0,0.00019999,2]
[349572796,1737303043789,-500.0,0.00019999,2]
[349572797,1737303043798,-500.0,0.00019999,2]
[349572798,1737303043807,-500.0,0.00019999,2]
[349572799,1737303043816,-500.0,0.00019999,2]
[349572800,1737303043826,-500.0,0.00019999,2]
[349572801,1737303043836,-500.0,0.00019999,2]
[349572802,1737303043846,-500.0,0.00019999,2]
[349572803,1737303043855,-500.0,0.00019999,2]
[349572804,1737303043865,-500.0,0.00019999,2]
[349572805,1737303043874,-500.0,0.00019999,2]
[349572806,1737303043884,-578.66,0.00019999,2]
[349572807,1737303043894,-500.0,0.00019999,2]
[349572808,1737303043903,-500.0,0.00019999,2]
[349572809,1737303043914,-500.0,0.00019999,2]
[349572810,1737303043923,-500.0,0.00019999,2]
[349572811,1737303043932,-500.0,0.00019999,2]
[349572812,1737303043942,-500.0,0.00019999,2]
[349572813,1737303043952,-500.0,0.00019999,2]
[349572814,1737303043961,-500.0,0.00019999,2]
[349572815,1737303043971,-500.0,0.00019999,2]
[349572816,1737303043983,-500.0,0.00019999,2]
[349572817,1737303043993,-500.0,0.00019999,2]
[349572818,1737303044003,-202.56,0.00019999,2]
[349572819,1737303044012,-355.95,0.00019999,2]
[349572820,1737303044023,-500.0,0.00019999,2]
[349572821,1737303044033,-500.0,0.00019999,2]
[349572822,1737303044043,-500.0,0.00019999,2]
[349572823,1737303044053,-499.17,0.00019999,2]
[349572824,1737303044064,-500.0,0.00019999,2]
[349572825,1737303044073,-500.0,0.00019999,2]
[349572826,1737303044083,-500.0,0.00019999,2]
[349572827,1737303044092,-500.0,0.00019999,2]
[349572828,1737303044102,-500.0,0.00019999,2]
[349572829,1737303044111,-500.0,0.00019999,2]
[349572830,1737303044121,-675.49,0.00019999,2]
[349572831,1737303044131,-500.0,0.00019999,2]
[349572832,1737303044141,-337.19869601,0.00019999,2]
[349572833,1737303044151,-500.0,0.00019999,2]
[349572834,1737303044162,-500.0,0.00019999,2]
[349572835,1737303044172,-559.42,0.00019999,2]
[349572836,1737303044182,-500.0,0.00019999,2]
[349572837,1737303044192,-500.0,0.00019999,2]
[349572838,1737303044202,-500.0,0.00019999,2]
[349572839,1737303044211,-514.41,0.00019999,2]
[349572840,1737303044221,-500.0,0.00019999,2]
[349572841,1737303044230,-500.0,0.00019999,2]
[349572842,1737303044240,-500.0,0.00019999,2]
[349572843,1737303044249,-500.0,0.00019999,2]
[349572844,1737303044259,-500.56216656,0.00019999,2]
[349572845,1737303044269,-689.86,0.00019999,2]
[349572846,1737303044279,-500.0,0.00019999,2]
[349572847,1737303044289,-262.88871181,0.00019999,2]
[349572848,1737303044299,-500.0,0.00019999,2]
[349572849,1737303044310,-500.0,0.00019999,2]
[349572850,1737303044320,-217.02,0.00019999,2]
[349572851,1737303044330,-500.0,0.00019999,2]
[349572852,1737303044340,-500.0,0.00019999,2]
[349572853,1737303044349,-657.32,0.00019999,2]
[349572854,1737303044359,-500.0,0.00019999,2]
[349572855,1737303044371,-500.0,0.00019999,2]
[349572856,1737303044381,-388.71,0.00019999,2]
[349572857,1737303044392,-500.0,0.00019999,2]
[349572858,1737303044402,-500.0,0.00019999,2]
[349572859,1737303044415,-500.0,0.00019999,2]
[349572860,1737303044425,-1231.04,0.00019999,2]
[349572861,1737303044436,-500.0,0.00019999,2]
[349572862,1737303044446,-500.0,0.00019999,2]
[349572863,1737303044457,-500.0,0.00019999,2]
[349572864,1737303044468,-500.0,0.00019999,2]
[349572865,1737303044478,-500.0,0.00019999,2]
[349572866,1737303044488,-500.0,0.00019999,2]
[349572867,1737303044498,-486.65390889,0.00019999,2]
[349572868,1737303044508,-500.0,0.00019999,2]
[349572869,1737303044517,-612.39,0.00019999,2]
[349572870,1737303044527,-1701.8,0.00019999,2]
[349572871,1737303044537,-1027.57,0.00019999,2]
[349572872,1737303044547,-500.0,0.00019999,2]
[349572873,1737303044556,-500.0,0.00019999,2]
[349572874,1737303044566,-552.64,0.00019999,2]
[349572875,1737303044576,-500.0,0.00019999,2]
[349572876,1737303044586,-1595.23,0.00019999,2]
[349572877,1737303044596,-500.0,0.00019999,2]
[349572878,1737303044606,-274.09,0.00019999,2]
[349572879,1737303044616,-500.0,0.00019999,2]
[349572880,1737303044626,-500.0,0.00019999,2]
[349572881,1737303044636,-500.0,0.00019999,2]
[349572882,1737303044646,-500.0,0.00019999,2]
[349572883,1737303044657,-500.0,0.00019999,2]
[349572884,1737303044667,-269.55,0.00019999,2]
[349572885,1737303044677,-500.0,0.00019999,2]
[349572886,1737303044687,-500.0,0.00019999,2]
[349572887,1737303044697,-500.0,0.00019999,2]
[349572888,1737303044707,-500.0,0.0002,2]
[349572889,1737303044717,-500.0,0.0002,2]
[349572890,1737303044727,-500.0,0.0002,2]
[349572891,1737303044737,-500.0,0.0002,2]
[349572892,1737303044749,-500.0,0.0002,2]
[349572893,1737303044758,-500.0,0.0002,2]
[349572894,1737303044768,-500.0,0.0002,2]
[349572895,1737303044778,-500.0,0.0002,2]
[349572896,1737303044787,-1000.0,0.0002,14]
[349572897,1737303044797,-500.0,0.0002,2]
[349572898,1737303044807,-200.0,0.00020026,2]
[349572899,1737303044820,-1000.0,0.00020038,2]
[349572900,1737303044832,-796.04904258,0.0002004,2]
[349572901,1737303044842,-150.0,0.00020044,2]
[349572902,1737303044852,-150.0,0.00020044,2]
[349572903,1737303044862,-150.0,0.00020044,2]
[349572904,1737303044872,-150.0,0.00020044,2]
[349572905,1737303044883,-150.0,0.00020044,2]
[349572906,1737303044893,-154.05500912,0.00020149,2]
[349572907,1737303044903,-796.04904258,0.00020212,2]
[349572908,1737303044915,-1074.74,0.00020228,2]
[349572909,1737303044925,-215.977581,0.00020272,2]
[349572910,1737303044935,-500.0,0.00020272,2]
[349572911,1737303044946,-605.44,0.00020272,2]
[349572912,1737303044956,-402.077451,0.00020272,2]
[349572913,1737303044965,-974.87,0.00020272,2]
[349572914,1737303044976,-899.01,0.00020272,2]
[349572915,1737303044990,-500.0,0.00020272,2]
[349572916,1737303045001,-944.29,0.00020272,2]
[349572917,1737303045011,-1199.1,0.00020272,2]
[349572918,1737303045021,-500.0,0.00020272,2]
[349572919,1737303045033,-500.0,0.00020272,2]
[349572920,1737303045044,-500.0,0.00020272,2]
[349572921,1737303045055,-500.0,0.00020272,2]
[349572922,1737303045065,-1057.86,0.00020272,2]
[349572923,1737303045075,-519.09,0.00020272,2]
[349572924,1737303045085,-1110.23,0.00020272,2]
[349572925,1737303045095,-500.0,0.00020272,2]
[349572926,1737303045105,-500.0,0.00020272,2]
[349572927,1737303045115,-1005.93,0.00020272,2]
[349572928,1737303045125,-1602.28,0.00020272,2]
[349572929,1737303045135,-500.0,0.00020272,2]
[349572930,1737303045145,-500.0,0.00020272,2]
[349572931,1737303045154,-621.67,0.00020272,2]
[349572932,1737303045168,-2018.43,0.00020272,2]
[349572933,1737303045181,-500.0,0.00020272,2]
[349572934,1737303045195,-500.0,0.00020272,2]
[349572935,1737303045208,-500.0,0.00020272,2]
[349572936,1737303045220,-500.0,0.00020272,2]
[349572937,1737303045230,-529.36,0.00020272,2]
[349572938,1737303045240,-500.0,0.00020272,2]
[349572939,1737303045250,-510.1,0.00020272,2]
[349572940,1737303045260,-500.0,0.00020272,2]
[349572941,1737303045270,-500.0,0.00020272,2]
[349572942,1737303045280,-1035.37,0.00020272,2]
[349572943,1737303045290,-500.0,0.00020272,2]
[349572944,1737303045300,-500.0,0.00020272,2]
[349572945,1737303045310,-2123.56,0.00020272,2]
[349572946,1737303045321,-500.0,0.00020272,2]
[349572947,1737303045331,-987.56,0.00020272,2]
[349572948,1737303045341,-725.37,0.00020272,2]
[349572949,1737303045351,-500.0,0.00020272,2]
[349572950,1737303045361,-500.0,0.00020272,2]
[349572951,1737303045371,-500.0,0.00020272,2]
[349572952,1737303045381,-500.0,0.00020272,2]
[349572953,1737303045392,-500.0,0.00020272,2]
[349572954,1737303045401,-986.3,0.00020272,2]
[349572955,1737303045413,-944.52,0.00020272,2]
[349572956,1737303045424,-500.0,0.00020272,2]
[349572957,1737303045434,-567.83,0.00020272,2]
[349572958,1737303045443,-500.0,0.00020272,2]
[349572959,1737303045453,-500.0,0.00020272,2]
[349572960,1737303045463,-500.0,0.00020272,2]
[349572961,1737303045476,-500.0,0.00020272,2]
[349572962,1737303045489,-500.0,0.00020272,2]
[349572963,1737303045499,-161.52116465,0.00020272,2]
[349572964,1737303045509,-500.0,0.00020273,2]
[349572965,1737303045519,-500.0,0.00020273,2]
[349572967,1737303045529,-500.0,0.00020273,2]
[349572969,1737303045539,-500.0,0.00020273,2]
[349572971,1737303045549,-500.0,0.00020273,2]
[349572972,1737303045559,-500.0,0.00020273,2]
[349572973,1737303045569,-935.14,0.00020273,2]
[349572975,1737303045579,-500.0,0.00020273,2]
[349572977,1737303045588,-500.0,0.00020273,2]
[349572979,1737303045598,-308.15,0.00020273,2]
[349572981,1737303045609,-369.09606204,0.00020273,2]
[349572983,1737303045619,-1200.21,0.00020273,2]
[349572984,1737303045629,-500.0,0.00020273,2]
[349572986,1737303045639,-500.0,0.00020273,2]
[349572987,1737303045649,-500.0,0.00020273,2]
[349572988,1737303045659,-500.0,0.00020273,2]
[349572989,1737303045669,-500.0,0.00020273,2]
[349572990,1737303045679,-500.0,0.00020273,2]
[349572991,1737303045688,-500.0,0.00020273,2]
[349572992,1737303045698,-500.0,0.00020273,2]
[349572993,1737303045709,-1000.0,0.00020273,14]
[349572994,1737303045719,-500.0,0.00020273,2]
[349572995,1737303045729,-500.0,0.00020273,2]
[349572996,1737303045738,-500.0,0.00020273,2]
[349572997,1737303045748,-500.0,0.00020273,2]
[349572998,1737303045759,-500.0,0.00020273,2]
[349572999,1737303045768,-500.0,0.00020273,2]
[349573000,1737303045778,-639.01677718,0.00020273,2]
[349573001,1737303045787,-500.0,0.00020273,2]
[349573002,1737303045797,-500.0,0.00020273,2]
[349573003,1737303045807,-177.36878755,0.00020273,2]
[349573004,1737303045817,-500.0,0.00020273,2]
[349573005,1737303045827,-500.0,0.00020273,2]
[349573006,1737303045836,-578.66,0.00020273,2]
[349573007,1737303045846,-500.0,0.00020273,2]
[349573008,1737303045855,-500.0,0.00020273,2]
[349573009,1737303045864,-500.0,0.00020273,2]
[349573010,1737303045873,-500.0,0.00020273,2]
[349573011,1737303045883,-500.0,0.00020273,2]
[349573012,1737303045893,-500.0,0.00020273,2]
[349573013,1737303045902,-500.0,0.00020273,2]
[349573014,1737303045913,-409.34593498,0.00020273,2]
[349573015,1737303045923,-500.0,0.00020273,2]
[349573016,1737303045933,-500.0,0.00020273,2]
[349573017,1737303045942,-500.0,0.00020273,2]
[349573018,1737303045952,-500.0,0.00020273,2]
[349573019,1737303045962,-595.23959278,0.00020273,2]
[349573020,1737303045972,-500.0,0.00020273,2]
[349573021,1737303045985,-161.14565621,0.00020273,2]
[349573022,1737303045995,-500.0,0.00020273,2]
[349573023,1737303046004,-675.49,0.00020273,2]
[349573024,1737303046015,-500.0,0.00020273,2]
[349573025,1737303046025,-500.0,0.00020273,2]
[349573026,1737303046034,-500.0,0.00020273,2]
[349573027,1737303046044,-559.42,0.00020273,2]
[349573028,1737303046054,-500.0,0.00020273,2]
[349573029,1737303046064,-432.8077758,0.00020273,2]
[349573030,1737303046074,-500.0,0.00020273,2]
[349573031,1737303046084,-514.41,0.00020273,2]
[349573032,1737303046094,-500.0,0.00020273,2]
[349573033,1737303046103,-500.0,0.00020273,2]
[349573034,1737303046113,-500.0,0.00020273,2]
[349573035,1737303046123,-500.0,0.00020273,2]
[349573036,1737303046132,-689.86,0.00020273,2]
[349573037,1737303046143,-500.0,0.00020273,2]
[349573038,1737303046152,-500.0,0.00020273,2]
[349573039,1737303046163,-500.0,0.00020273,2]
[349573040,1737303046173,-500.0,0.00020273,2]
[349573042,1737303046183,-657.32,0.00020273,2]
[349573045,1737303046196,-500.0,0.00020273,2]
[349573047,1737303046206,-500.0,0.00020273,2]
[349573049,1737303046216,-500.0,0.00020273,2]
[349573051,1737303046225,-500.0,0.00020273,2]
[349573053,1737303046234,-500.0,0.00020273,2]
[349573055,1737303046244,-1231.04,0.00020273,2]
[349573057,1737303046255,-500.0,0.00020273,2]
[349573059,1737303046268,-500.0,0.00020273,2]
[349573061,1737303046277,-500.0,0.00020273,2]
[349573063,1737303046288,-500.0,0.00020273,2]
[349573065,1737303046299,-500.0,0.00020273,2]
[349573067,1737303046309,-500.0,0.00020273,2]
[349573069,1737303046319,-500.0,0.00020273,2]
[349573071,1737303046330,-612.39,0.00020273,2]
[349573072,1737303046340,-1701.8,0.00020273,2]
[349573073,1737303046351,-1027.57,0.00020273,2]
[349573074,1737303046362,-500.0,0.00020273,2]
[349573075,1737303046372,-500.0,0.00020273,2]
[349573076,1737303046382,-552.64,0.00020273,2]
[349573077,1737303046393,-1595.23,0.00020273,2]
[349573078,1737303046403,-500.0,0.00020273,2]
[349573079,1737303046415,-500.0,0.00020273,2]
[349573080,1737303046425,-500.0,0.00020273,2]
[349573081,1737303046436,-204.34,0.00020273,2]
[349573082,1737303046446,-500.0,0.00020273,2]
[349573083,1737303046456,-500.0,0.00020273,2]
[349573084,1737303046466,-500.0,0.00020273,2]
[349573085,1737303046476,-500.0,0.00020273,2]
[349573086,1737303046487,-945.8,0.00020286,2]
[349573087,1737303046497,-250.0,0.00020313,2]
[349573088,1737303046507,-1105.0,0.00020359,2]
[349573089,1737303046517,-796.04904258,0.00020384,2]
[349573090,1737303046528,-154.05500912,0.00020399,2]
[349573091,1737303046540,-820.0,0.00020456,2]
[349573092,1737303046550,-1018.725,0.00020456,2]
[349573093,1737303046560,-161.275,0.00020456,2]
[349573094,1737303046570,-309.63,0.00020482,2]
[349573095,1737303046581,-1000.0,0.00020531,2]
[349573096,1737303046591,-215.977581,0.00020546,2]
[349573097,1737303046602,-500.0,0.00020546,2]
[349573098,1737303046793,-605.44,0.00020546,2]
[349573099,1737303046803,-402.077451,0.00020546,2]
[349573100,1737303046812,-974.87,0.00020546,2]
[349573101,1737303046822,-899.01,0.00020546,2]
[349573102,1737303046832,-500.0,0.00020546,2]
[349573103,1737303046841,-944.29,0.00020546,2]
[349573104,1737303046851,-1199.1,0.00020546,2]
[349573105,1737303046861,-500.0,0.00020546,2]
[349573106,1737303046870,-500.0,0.00020546,2]
[349573107,1737303046880,-500.0,0.00020546,2]
[349573108,1737303046889,-500.0,0.00020546,2]
[349573109,1737303046899,-1057.86,0.00020546,2]
[349573110,1737303046908,-519.09,0.00020546,2]
[349573111,1737303046919,-1110.23,0.00020546,2]
[349573112,1737303046929,-500.0,0.00020546,2]
[349573113,1737303046939,-500.0,0.00020546,2]
[349573114,1737303046949,-1005.93,0.00020546,2]
[349573115,1737303046959,-1602.28,0.00020546,2]
[349573116,1737303046969,-500.0,0.00020546,2]
[349573117,1737303046981,-500.0,0.00020546,2]
[349573118,1737303046991,-621.67,0.00020546,2]
[349573119,1737303047001,-2018.43,0.00020546,2]
[349573120,1737303047011,-500.0,0.00020546,2]
[349573121,1737303047020,-500.0,0.00020546,2]
[349573122,1737303047031,-500.0,0.00020546,2]
[349573123,1737303047040,-199.48492817,0.00020546,2]
[349573124,1737303047050,-529.36,0.00020546,2]
[349573125,1737303047061,-500.0,0.00020546,2]
[349573126,1737303047071,-510.1,0.00020546,2]
[349573127,1737303047080,-500.0,0.00020546,2]
[349573128,1737303047090,-500.0,0.00020546,2]
[349573129,1737303047099,-1035.37,0.00020546,2]
[349573130,1737303047109,-500.0,0.00020546,2]
[349573131,1737303047119,-500.0,0.00020546,2]
[349573132,1737303047129,-2123.56,0.00020546,2]
[349573133,1737303047138,-500.0,0.00020546,2]
[349573134,1737303047149,-987.56,0.00020546,2]
[349573135,1737303047159,-725.37,0.00020546,2]
[349573136,1737303047170,-500.0,0.00020546,2]
[349573137,1737303047179,-500.0,0.00020546,2]
[349573138,1737303047189,-500.0,0.00020546,2]
[349573139,1737303047200,-500.0,0.00020546,2]
[349573140,1737303047211,-217.49763853,0.00020546,2]
[349573141,1737303047221,-986.3,0.00020546,2]
[349573142,1737303047233,-944.52,0.00020546,2]
[349573143,1737303047243,-500.0,0.00020546,2]
[349573144,1737303047253,-567.83,0.00020546,2]
[349573145,1737303047263,-500.0,0.00020546,2]
[349573146,1737303047273,-500.0,0.00020546,2]